[Event "TUR-ch U13-18 Open 2023"]
[Site "Antalya"]
[Date "2023.01.26"]
[Round "8"]
[White "Dirikolu, Deniz"]
[Black "Demirtas, Alper"]
[Result "1/2-1/2"]
[ECO "C02"]
[WhiteElo "1868"]
[BlackElo "1990"]
[Annotator "TA"]
[PlyCount "81"]
[EventDate "2023.01.17"]
[EventType "swiss"]
[EventCountry "TUR"]
[SourceTitle "playchess.com"]
[Source "ChessBase"]
[SourceQuality "1"]
[TimeControl "5400+30"]

{[%evp 14,81,12,8,98,90,104,100,130,140,142,118,121,98,144,142,188,135,179,179,173,164,214,148,150,157,181,76,169,125,111,111,128,108,141,73,43,49,96,26,20,8,24,20,50,-8,-15,-25,0,0,0,-12,0,0,81,-36,-38,-54,-66,-97,-104,-115,-104,-136,-125,-122,0,-11,0,-98]} 1. e4 {[%emt 0:01:00]} e6 {[%emt 0:01:00]} 2. d4 {[%emt 0:00:00]} d5 {[%emt 0:00:30]} 3. e5 {[%emt 0:00:00]} c5 {[%emt 0:00:30]} 4. c3 {[%emt 0:00:30]} Qb6 {[%emt 0:00:30]} 5. Nf3 {[%emt 0:00:00]} Bd7 {[%emt 0:00:30][%cal Bc8d7,Bd7b5,Bb5c4][%mdl 32]} 6. Bd3 {[%emt 0:00:00]} Bb5 {[%emt 0:01:30]} 7. dxc5 $1 {[%emt 0:00:00][%mdl 4] is now more promising than 7.0-0.} Bxc5 {[%emt 0:00:30]} 8. b4 {[%emt 0:00:00]} Bf8 {[%emt 0:00:30] C02: French: Advance Variation.} (8... Bxf2+ 9. Ke2 $16) (8... Bxd3 $1 $11 9. Qxd3 Bf8) 9. Be3 $1 $16 {[%emt 0:02:30]} Qa6 {[%emt 0:01:30]} 10. Bc2 {[%emt 0:00:30] [#]} ({But not} 10. Bxb5+ Qxb5 11. Na3 Qd7 $11) 10... Nd7 $146 {[%emt 0:07:30] White is better.} ({Predecessor:} 10... b6 11. a4 Bd7 12. Na3 Qc8 13. Nb5 Bxb5 14. axb5 Qxc3+ 15. Ke2 Nd7 16. Re1 Qxb4 {0-1 Ochkoos,J (2203)-Yanchenko,R (2467) Titled Tuesday intern op 04th Jan blitz 2022 (4)}) 11. a4 {[%emt 0:04:30]} Bc4 {[%emt 0:00:30]} 12. Na3 {[%emt 0:00:30]} Qc6 {[%emt 0:07:30]} 13. Bd4 {[%emt 0:03:30]} Ne7 {[%emt 0:05:30]} (13... Qc7 $142) 14. Nd2 $1 {[%emt 0:08:30]} Ng6 {[%emt 0:01:30]} (14... Nf5 $16 {keeps fighting.}) 15. Qh5 {[%emt 0:04:30]} (15. Naxc4 $18 {Black must now prevent Na3.} dxc4 16. a5) 15... a6 {[%emt 0:10:30]} 16. Naxc4 {[%emt 0:07:30]} dxc4 {[%emt 0:00:30]} 17. O-O {[%emt 0:00:30]} Be7 {[%emt 0:05:30]} (17... Qxg2+ {was worth a try.} 18. Kxg2 Nf4+ 19. Kh1 Nxh5) 18. Be4 {[%emt 0:00:30]} Qc7 {[%emt 0:00:30][%cal Rd7e5]} 19. f4 {[%emt 0:00:30]} O-O {[%emt 0:04:30]} 20. Qg4 {[%emt 0:07:30]} (20. a5 $18 {is more deadly.}) 20... Rfd8 {[%emt 0:05:30]} (20... a5 $16) 21. Nf3 {[%emt 0:01:30]} a5 {[%emt 0:01:30]} 22. f5 {[%emt 0:04:30] White is more active.} exf5 {[%emt 0:00:30]} 23. Qxf5 {[%emt 0:01:30]} Ndf8 {[%emt 0:06:30][%cal Bd7f8,Bf8e6,Be6c5][%mdl 32]} 24. b5 {[%emt 0:04:30]} (24. bxa5 $142 $1 {Strongly threatening Rab1.} Rxa5 25. Rab1) 24... Ne6 {[%emt 0:00:30]} 25. h4 {[%emt 0:02:30]} h6 {[%emt 0:04:30]} (25... Bc5 $14 {might be stronger.}) 26. h5 {[%emt 0:10:30]} (26. Kh1 $1 $16) 26... Ngf8 $11 {[%emt 0:00:00]} 27. Rad1 {[%emt 0:00:30]} Bc5 {[%emt 0:02:00] Wards off b6} 28. Kh1 {[%emt 0:01:30]} Rd7 {[%emt 0:02:30]} 29. Bxc5 {[%emt 0:02:30]} (29. b6 $1 $14 Qc8 30. Rb1) 29... Nxc5 {[%emt 0:01:30]} 30. Bc2 {[%emt 0:04:30]} Rad8 {[%emt 0:00:30]} (30... Nd3 {simplifies} 31. Bxd3 cxd3 32. Rxd3 Rxd3 33. Qxd3 Rd8) 31. Nd4 {[%emt 0:00:30]} Rd5 {[%emt 0:02:30][%cal Bd7d5,Bd5e5,Be5e4,Be4f4][%mdl 32]} 32. Rde1 {[%emt 0:00:30]} Re8 {[%emt 0:00:30][%cal Re8e5]} 33. Qg4 {[%emt 0:03:30] Nf5 would be deadly.} Qe7 {[%emt 0:07:30]} (33... Nce6 $11 {keeps the balance.}) 34. Rf5 {[%emt 0:03:30]} ({Better is} 34. Qf3 $16 Rd7 35. Nf5) 34... Nd3 $15 {[%emt 0:03:54]} 35. Bxd3 {[%emt 0:02:30]} cxd3 {[%emt 0:00:30]} 36. Rd1 {[%emt 0:00:30]} Rxe5 {[%emt 0:00:11]} 37. Rxd3 {[%emt 0:02:42]} Re4 {[%emt 0:00:30]} 38. Rf4 {[%emt 0:00:30] [#]} Rxf4 $1 {[%emt 0:00:30]} 39. Qxf4 {[%emt 0:00:30] [#]} Qe1+ {[%emt 0:00:30]} (39... Qc5 $1 $17 40. Qh4 Nd7) 40. Kh2 $11 {[%emt 0:00:30]} Re4 {[%emt 0:00:30]} 41. Qf5 {[%emt 0:00:30] White really could win this.   Weighted Error Value: White=0.24 (precise) /Black=0.29 (precise)} (41. Rd1 $1 $11 {remains equal.}) 1/2-1/2

[Event "TUR-ch U13-18 Open 2023"]
[Site "Antalya"]
[Date "2023.01.26"]
[Round "8"]
[White "Yildiz, Tunahan"]
[Black "Ozen, Metehan"]
[Result "0-1"]
[ECO "E01"]
[WhiteElo "1792"]
[BlackElo "2137"]
[Annotator "TA"]
[PlyCount "68"]
[EventDate "2023.01.17"]
[EventType "swiss"]
[EventCountry "TUR"]
[SourceTitle "playchess.com"]
[Source "ChessBase"]
[SourceQuality "1"]
[TimeControl "5400+30"]

{[%evp 15,68,0,12,-50,-52,-66,-68,-69,-67,-102,-79,-100,-96,-88,-53,-115,-123,-136,-99,-197,-186,-201,-191,-185,-183,-260,-229,-329,-325,-394,-381,-544,-535,-616,-431,-506,-506,-496,-516,-468,-297,-535,-441,-1217,-800,-1192,-853,-1747,-1737,-1695,-1627,-1474,-1081,-1825,-1733]} 1. d4 d5 2. c4 c6 3. Nf3 Nf6 4. Nc3 e6 5. g3 dxc4 6. Bg2 Nbd7 7. O-O b5 8. e4 Bb7 9. Qe2 {E01: Catalan: Early deviations.} (9. e5 $11 Nd5 10. Ng5) 9... Be7 $15 10. e5 Nd5 11. Ne4 {Black is slightly better.} h6 {[#] Prevents Bg5.} 12. h4 $146 ({Predecessor:} 12. b3 cxb3 13. axb3 O-O 14. Bd2 a5 15. Rfc1 Qb6 16. Qe1 b4 17. Be3 Rfd8 18. Nfd2 {1-0 Sadhwani,R (2507)-Timofeev,A (2588) Wch Rapid Moscow 2019 (8)}) 12... Qb6 13. a4 a6 {[%cal Ba7a6,Ba6b5,Bb5b4][%mdl 32]} 14. Rd1 c5 (14... Qc7 {is more complex.} 15. Ne1 c5 16. axb5 axb5 17. Nd6+ Bxd6 18. exd6 Qc8) 15. Nd6+ Bxd6 $17 16. exd6 Qxd6 17. axb5 (17. dxc5 $17 {keeps fighting.} Nxc5 18. axb5) 17... axb5 $19 18. Rxa8+ Bxa8 19. dxc5 Qxc5 ({And not} 19... Nxc5 20. Nd4 Qb6 21. Nf5 $15) 20. Nd4 (20. Ne5 $142 Nxe5 21. Qxe5) 20... O-O 21. Be4 (21. Nc2 $142) 21... N7f6 {[#] Threatens to win with ...Nxe4.} 22. Bb1 b4 23. g4 (23. Nf3 $142) 23... c3 24. Qc2 {[%emt 1:41:31]} Ne7 {[%emt 1:33:12] Hoping for ...Be4.} (24... Nxg4 $2 25. Qh7#) 25. Be3 {[%emt 0:00:30]} Qd5 {[%emt 0:00:30][%csl Ga8][%cal Rd5h1] [#]} (25... Nxg4 $2 26. Qh7#) 26. f3 {[%emt 0:00:30]} Qe5 {[%emt 0:00:30]} ({Not} 26... e5 $2 27. g5 b3 28. Qxb3 exd4 29. Qxd5 Nfxd5 30. Bxd4 $19) 27. Bf2 {[%emt 0:00:30]} Rc8 {[%emt 0:00:30]} 28. b3 $2 {[%emt 0:00:26]} (28. bxc3 bxc3 29. Re1) 28... Qf4 {[%emt 0:05:15] Black is clearly winning.} 29. Re1 {[%emt 0:01:01]} (29. Qc1 $142 Qxc1 30. Rxc1) 29... e5 {[%emt 0:01:31][%cal Be6e5,Be5d4][%mdl 32]} 30. g5 {[%emt 0:00:43]} hxg5 {[%emt 0:00:23]} 31. hxg5 {[%emt 0:00:00]} Qxg5+ {[%emt 0:00:57]} 32. Kf1 {[%emt 0:00:00]} exd4 {[%emt 0:01:09]} 33. Rxe7 {[%emt 0:00:49]} Rd8 {[%emt 0:00:58]} 34. Qd3 {[%emt 0:00:51]} Bc6 {[%emt 0:00:11] Weighted Error Value: White=1.20/Black=0.82} 0-1

[Event "TUR-ch U13-18 Open 2023"]
[Site "Antalya"]
[Date "2023.01.26"]
[Round "8"]
[White "Ozgun, Yigit Deniz"]
[Black "Gungor, Cihan Akif"]
[Result "1/2-1/2"]
[ECO "D55"]
[WhiteElo "1769"]
[BlackElo "1871"]
[Annotator "NA RC COMBH"]
[PlyCount "62"]
[EventDate "2023.01.17"]
[EventType "swiss"]
[EventCountry "TUR"]
[SourceTitle "playchess.com"]
[Source "ChessBase"]
[SourceQuality "1"]
[TimeControl "5400+30"]

1. d4 {[%emt 0:01:00]} Nf6 {[%emt 0:01:00]} 2. c4 {[%emt 0:00:00]} e6 {[%emt 0:00:30]} 3. Nc3 {[%emt 0:02:00]} d5 {[%emt 0:00:00]} 4. cxd5 {[%emt 0:00:30]} exd5 {[%emt 0:00:00]} 5. Bg5 {[%emt 0:00:00]} Nbd7 {[%emt 0:00:30]} 6. e3 {[%emt 0:00:00]} Be7 {[%emt 0:00:30]} 7. Bd3 {[%emt 0:00:30]} h6 {[%emt 0:01:30]} 8. Bh4 {[%emt 0:00:30]} b6 {[%emt 0:01:30]} 9. Qc2 {[%emt 0:01:30]} Bb7 {[%emt 0:01:30]} 10. Nf3 {[%emt 0:03:30]} O-O {[%emt 0:00:30]} 11. O-O {[%emt 0:00:30]} Re8 {[%emt 0:07:30]} 12. Rac1 {[%emt 0:08:30]} a6 {[%emt 0:06:30]} 13. Rfd1 {[%emt 0:02:30]} Bd6 {[%emt 0:05:30]} 14. Bh7+ {[%emt 0:05:30]} Kh8 {[%emt 0:06:30]} 15. Bf5 {[%emt 0:00:30]} g5 {[%emt 0:23:30]} (15... Nf8 $142) 16. Bg3 {[%emt 0:01:00]} Bxg3 {[%emt 0:09:30]} 17. hxg3 {[%emt 0:00:30]} Qe7 {[%emt 0:04:30]} 18. Qb3 {[%emt 0:02:30]} Qd6 {[%emt 0:03:30]} 19. Bb1 {[%emt 0:00:30]} Rac8 {[%emt 0:00:30]} 20. Qc2 {[%emt 0:05:30]} Ne4 {[%emt 0:01:30]} 21. Nxe4 {[%emt 0:02:30]} dxe4 {[%emt 0:00:30]} 22. Nd2 {[%emt 0:00:30]} Bd5 {[%emt 0:01:30]} 23. Nc4 {[%emt 0:02:30]} Qe6 {[%emt 0:01:20]} 24. b3 {[%emt 0:00:30]} (24. f3 $5 {[%cal Rf3e4]}) 24... Kg7 {[%emt 0:01:36]} 25. Re1 {[%emt 0:04:30]} f5 $15 {[%emt 0:11:29]} 26. Qe2 Qf6 27. Nd2 a5 28. g4 Re7 29. gxf5 Qxf5 30. Nc4 Rf8 31. Rc2 g4 1/2-1/2

[Event "TUR-ch U13-18 Open 2023"]
[Site "Antalya"]
[Date "2023.01.26"]
[Round "8"]
[White "Uysal, Ugur"]
[Black "Coban, Azad"]
[Result "1-0"]
[ECO "A30"]
[WhiteElo "1760"]
[BlackElo "1417"]
[Annotator "NA RC COMBH"]
[PlyCount "51"]
[EventDate "2023.01.17"]
[EventType "swiss"]
[EventCountry "TUR"]
[SourceTitle "playchess.com"]
[Source "ChessBase"]
[SourceQuality "1"]
[TimeControl "5400+30"]

1. Nf3 {[%emt 0:01:00]} c5 {[%emt 0:01:00]} 2. c4 {[%emt 0:00:30]} Nc6 {[%emt 0:00:30]} 3. d4 {[%emt 0:00:00]} cxd4 {[%emt 0:00:30]} 4. Nxd4 {[%emt 0:00:00]} g6 {[%emt 0:01:30]} 5. g3 {[%emt 0:00:00]} Bg7 {[%emt 0:00:30]} 6. Nc2 {[%emt 0:00:00]} Nh6 {[%emt 0:00:30]} 7. Bg2 {[%emt 0:00:30]} O-O {[%emt 0:01:30]} 8. O-O {[%emt 0:03:30]} d6 {[%emt 0:01:30]} 9. Nc3 {[%emt 0:04:30]} Nf5 {[%emt 0:01:30]} 10. Nd5 {[%emt 0:09:30]} e6 {[%emt 0:03:30]} 11. Nde3 {[%emt 0:04:30]} Nfd4 {[%emt 0:02:30]} 12. Rb1 {[%emt 0:00:30]} Nxc2 {[%emt 0:01:30]} 13. Nxc2 {[%emt 0:00:30]} Qc7 {[%emt 0:04:30]} 14. b3 {[%emt 0:01:30]} Rd8 {[%emt 0:03:30]} 15. Bg5 {[%emt 0:00:30]} Rd7 {[%emt 0:02:30]} 16. h4 {[%emt 0:03:30]} b6 {[%emt 0:01:30]} 17. Qd2 {[%emt 0:05:30]} h5 {[%emt 0:02:30]} 18. Bh6 {[%emt 0:07:30]} Be5 {[%emt 0:03:30]} 19. f4 {[%emt 0:19:30]} Bf6 {[%emt 0:02:30]} 20. e4 {[%emt 0:01:30]} Bb7 {[%emt 0:00:30]} 21. f5 {[%emt 0:00:30]} exf5 {[%emt 0:12:30]} 22. exf5 {[%emt 0:00:30]} Be5 {[%emt 0:01:30]} 23. f6 {[%emt 0:01:30]} Nd8 {[%emt 0:04:30]} 24. Bxb7 {[%emt 0:06:30]} Qxb7 {[%emt 0:01:30]} 25. Bg7 {[%emt 0:01:30]} Ne6 {[%emt 0:00:30]} 26. Qh6 {[%emt 0:00:00]} 1-0

[Event "TUR-ch U13-18 Open 2023"]
[Site "Antalya"]
[Date "2023.01.26"]
[Round "8"]
[White "Zerey, Demhat"]
[Black "Isik, Tuna"]
[Result "1-0"]
[ECO "B28"]
[WhiteElo "1756"]
[BlackElo "1451"]
[Annotator "NA RC COMBH"]
[PlyCount "71"]
[EventDate "2023.01.17"]
[EventType "swiss"]
[EventCountry "TUR"]
[SourceTitle "playchess.com"]
[Source "ChessBase"]
[SourceQuality "1"]
[TimeControl "5400+30"]

1. e4 {[%emt 0:02:00]} c5 {[%emt 0:01:00]} 2. Nf3 {[%emt 0:00:30]} a6 {[%emt 0:00:00]} 3. d4 {[%emt 0:01:30]} cxd4 {[%emt 0:00:00]} 4. Nxd4 {[%emt 0:00:30]} Nf6 {[%emt 0:00:00]} 5. Bd3 {[%emt 0:00:30]} Nc6 {[%emt 0:00:00]} 6. Be3 {[%emt 0:02:30]} g6 {[%emt 0:03:30]} 7. c4 {[%emt 0:01:30]} Bg7 {[%emt 0:01:30]} 8. Nc3 {[%emt 0:01:30]} d6 {[%emt 0:00:30]} 9. Be2 {[%emt 0:05:30]} O-O {[%emt 0:06:30]} 10. f3 {[%emt 0:06:30]} Bd7 {[%emt 0:02:30]} 11. Qd2 {[%emt 0:03:30]} Rc8 {[%emt 0:06:30]} 12. O-O {[%emt 0:02:30]} Re8 {[%emt 0:08:30]} 13. b3 {[%emt 0:07:30]} Qc7 {[%emt 0:08:30]} 14. Rac1 {[%emt 0:03:30]} Qb8 {[%emt 0:02:30]} 15. a4 {[%emt 0:06:30]} Be6 {[%emt 0:04:30]} 16. Kh1 {[%emt 0:09:30]} Nd7 {[%emt 0:08:30]} 17. Nxe6 {[%emt 0:09:30]} fxe6 {[%emt 0:00:00]} 18. f4 {[%emt 0:00:30]} Nf6 {[%emt 0:00:00]} 19. g4 {[%emt 0:03:30]} Nd7 {[%emt 0:11:30]} 20. Rb1 {[%emt 0:11:32]} e5 {[%emt 0:09:30]} 21. f5 {[%emt 0:01:44]} Nd4 {[%emt 0:02:30]} 22. Bxd4 {[%emt 0:01:10]} exd4 {[%emt 0:00:30]} 23. Nd5 {[%emt 0:00:30]} Nf6 {[%emt 0:00:30]} 24. Qxd4 {[%emt 0:00:30]} Nxg4 {[%emt 0:03:30]} 25. Qg1 {[%emt 0:04:00]} Ne5 {[%emt 0:03:20]} 26. Qg5 {[%emt 0:00:52]} Rc7 {[%emt 0:02:38]} 27. fxg6 {[%emt 0:01:20]} h6 {[%emt 0:03:29]} 28. Qg3 {[%emt 0:00:25]} Rc6 {[%emt 0:00:42]} 29. Bg4 {[%emt 0:02:10]} Qd8 {[%emt 0:02:08]} 30. Be6+ {[%emt 0:00:54]} Kh8 {[%emt 0:00:01]} 31. Nf4 {[%emt 0:01:03]} Rf8 {[%emt 0:00:49]} 32. Bd5 {[%emt 0:00:50]} Rc8 {[%emt 0:02:24]} 33. Ne6 {[%emt 0:00:10]} Rxf1+ {[%emt 0:01:08]} 34. Rxf1 {[%emt 0:00:30]} Qe8 {[%emt 0:00:30]} 35. Nxg7 {[%emt 0:00:30]} Kxg7 {[%emt 0:00:30]} 36. Rf7+ {[%emt 0:00:30]} 1-0

[Event "TUR-ch U13-18 Open 2023"]
[Site "Antalya"]
[Date "2023.01.26"]
[Round "8"]
[White "Kara, Goktan Can"]
[Black "Sevig, Mert Can"]
[Result "0-1"]
[ECO "B44"]
[WhiteElo "1755"]
[BlackElo "1738"]
[Annotator "NA RC COMBH"]
[PlyCount "34"]
[EventDate "2023.01.17"]
[EventType "swiss"]
[EventCountry "TUR"]
[SourceTitle "playchess.com"]
[Source "ChessBase"]
[SourceQuality "1"]
[TimeControl "5400+30"]

1. e4 {[%emt 0:02:00]} c5 {[%emt 0:01:00]} 2. Nf3 {[%emt 0:00:30]} e6 {[%emt 0:00:30]} 3. d4 {[%emt 0:00:30]} cxd4 {[%emt 0:00:00]} 4. Nxd4 {[%emt 0:00:30]} Nc6 {[%emt 0:00:00]} 5. c4 {[%emt 0:01:30]} Nf6 {[%emt 0:00:00]} 6. Nc3 {[%emt 0:01:30]} Bb4 {[%emt 0:00:00]} 7. Nxc6 {[%emt 0:05:30]} bxc6 {[%emt 0:00:00]} 8. e5 {[%emt 0:14:30]} Ne4 {[%emt 0:00:00]} 9. Qg4 {[%emt 0:12:30]} Nxc3 {[%emt 0:00:30]} 10. a3 {[%emt 0:00:00]} Qa5 {[%emt 0:00:00]} 11. Qxg7 {[%emt 0:01:00]} Ne4+ {[%emt 0:00:00]} 12. axb4 {[%emt 0:00:30]} Qxa1 {[%emt 0:13:30]} 13. Qxh8+ {[%emt 0:01:30]} Ke7 {[%emt 0:00:00]} 14. Kd1 {[%emt 0:02:30]} Qa4+ {[%emt 0:08:00]} 15. Ke2 {[%emt 0:02:30]} Qc2+ {[%emt 0:00:30]} 16. Kf3 {[%emt 0:05:30]} Bb7 {[%emt 0:00:30]} 17. Bg5+ {[%emt 0:01:30]} Nxg5+ {[%emt 0:00:30]} 0-1

[Event "TUR-ch U13-18 Open 2023"]
[Site "Antalya"]
[Date "2023.01.26"]
[Round "8"]
[White "Ceyhan, Mert"]
[Black "Manas, Eren"]
[Result "1-0"]
[ECO "B23"]
[WhiteElo "1733"]
[BlackElo "1535"]
[Annotator "NA RC COMBH"]
[PlyCount "70"]
[EventDate "2023.01.17"]
[EventType "swiss"]
[EventCountry "TUR"]
[SourceTitle "playchess.com"]
[Source "ChessBase"]
[SourceQuality "1"]
[TimeControl "5400+30"]

1. e4 {[%emt 0:01:00]} c5 {[%emt 0:01:00]} 2. Nc3 {[%emt 0:00:30]} Nc6 {[%emt 0:00:30]} 3. Bb5 {[%emt 0:00:00]} g6 {[%emt 0:00:30]} 4. Bxc6 {[%emt 0:02:00]} dxc6 {[%emt 0:00:30]} 5. d3 {[%emt 0:00:30]} Bg7 {[%emt 0:00:30]} 6. Be3 {[%emt 0:00:30]} b6 {[%emt 0:00:30]} 7. Nge2 {[%emt 0:01:30]} Nf6 {[%emt 0:01:30]} 8. h3 {[%emt 0:00:30]} O-O {[%emt 0:00:30]} 9. Qd2 {[%emt 0:00:30]} Ne8 {[%emt 0:06:30]} 10. g4 {[%emt 0:05:30]} e5 {[%emt 0:05:30]} 11. f3 {[%emt 0:02:30]} Nc7 {[%emt 0:07:30]} 12. O-O-O {[%emt 0:07:30]} Ne6 {[%emt 0:00:30]} 13. h4 {[%emt 0:01:30]} b5 {[%emt 0:11:30]} 14. h5 {[%emt 0:07:30]} g5 {[%emt 0:01:30]} 15. Ng3 {[%emt 0:02:30]} h6 {[%emt 0:05:30]} 16. Nf5 {[%emt 0:03:30]} Nd4 {[%emt 0:03:30]} 17. Nxg7 {[%emt 0:07:30]} Kxg7 {[%emt 0:00:30]} 18. Rhf1 {[%emt 0:03:30]} f6 {[%emt 0:05:30]} 19. Nb1 {[%emt 0:04:30]} Rf7 {[%emt 0:05:30]} 20. c3 {[%emt 0:01:30]} Ne6 {[%emt 0:00:30]} 21. Qf2 {[%emt 0:00:30]} Qf8 {[%emt 0:14:30]} 22. Nd2 {[%emt 0:02:30]} c4 {[%emt 0:06:30]} 23. dxc4 {[%emt 0:01:30]} bxc4 {[%emt 0:00:00]} 24. Nxc4 {[%emt 0:02:30]} Ba6 {[%emt 0:00:00]} 25. Nd6 {[%emt 0:00:00]} Bxf1 {[%emt 0:00:30]} 26. Nxf7 {[%emt 0:00:00]} Qxf7 {[%emt 0:00:30]} 27. Qxf1 {[%emt 0:00:00]} Rb8 {[%emt 0:03:30]} 28. Qc4 {[%emt 0:03:00]} Qb7 {[%emt 0:01:31]} 29. Rd2 {[%emt 0:00:00]} Kf7 {[%emt 0:01:27]} 30. b3 {[%emt 0:01:00]} Qc7 {[%emt 0:01:09]} 31. Bc5 {[%emt 0:01:30]} Rb5 {[%emt 0:02:10]} 32. Rd6 {[%emt 0:01:30]} Qc8 {[%emt 0:00:45]} 33. Be3 {[%emt 0:01:30]} Rb8 {[%emt 0:02:06]} 34. Rxc6 {[%emt 0:00:30]} Qd7 {[%emt 0:00:14]} 35. Rxe6 {[%emt 0:00:30]} Qd8 {[%emt 0:01:47]} 1-0

[Event "TUR-ch U13-18 Open 2023"]
[Site "Antalya"]
[Date "2023.01.26"]
[Round "8"]
[White "Binboga, Yaman"]
[Black "Tezcan, Alper"]
[Result "0-1"]
[ECO "C00"]
[WhiteElo "1641"]
[BlackElo "1568"]
[Annotator "NA RC COMBH"]
[PlyCount "84"]
[EventDate "2023.01.17"]
[EventType "swiss"]
[EventCountry "TUR"]
[SourceTitle "playchess.com"]
[Source "ChessBase"]
[SourceQuality "1"]
[TimeControl "5400+30"]

1. e4 e6 2. b3 d5 3. Bb2 dxe4 4. Nc3 Nf6 5. Qe2 Be7 6. O-O-O O-O 7. Nxe4 a5 8. a4 b6 9. Qf3 Ra7 10. Bd3 Bb7 11. Ne2 Nbd7 12. Qg3 e5 13. f3 Nxe4 14. Bxe4 Bxe4 15. fxe4 Re8 16. d4 exd4 17. Bxd4 Bf8 18. Qg4 c5 19. Bb2 c4 20. Kb1 cxb3 21. cxb3 Qe7 22. Nc3 Qe6 23. Qxe6 Rxe6 24. Rhe1 f6 25. Nb5 Rb7 26. Rd5 Nc5 27. Ba3 Kf7 28. Bxc5 {[%emt 1:32:30]} Bxc5 {[%emt 1:39:33]} 29. Kc2 {[%emt 0:00:30]} Rbe7 {[%emt 0:00:30]} 30. Kd3 {[%emt 0:00:30]} Bb4 {[%emt 0:00:30]} 31. Re2 {[%emt 0:00:30]} Rc6 {[%emt 0:00:30]} 32. Ke3 {[%emt 0:00:30]} Rc1 {[%emt 0:00:30]} 33. Kf3 {[%emt 0:00:30]} Bc5 {[%emt 0:00:30]} 34. Nd6+ {[%emt 0:00:30]} Ke6 {[%emt 0:00:30]} 35. Nf5 {[%emt 0:00:30]} Rc7 {[%emt 0:01:32]} 36. Red2 {[%emt 0:02:51]} g6 {[%emt 0:00:22]} 37. Ng3 {[%emt 0:00:24]} Bb4 {[%emt 0:01:01]} 38. R2d3 {[%emt 0:00:14]} h5 {[%emt 0:01:29]} 39. Ne2 {[%emt 0:00:25]} Rf1+ {[%emt 0:00:43]} 40. Kg3 {[%emt 0:00:32]} g5 {[%emt 0:00:54]} 41. Nd4+ {[%emt 0:02:00]} Kf7 {[%emt 0:00:13]} 42. h3 {[%emt 0:00:14]} h4+ {[%emt 0:00:33]} 0-1

[Event "TUR-ch U13-18 Open 2023"]
[Site "Antalya"]
[Date "2023.01.26"]
[Round "8"]
[White "Tas, Yasar Asil"]
[Black "Taspinar, Yanki"]
[Result "0-1"]
[ECO "D04"]
[WhiteElo "1622"]
[BlackElo "2275"]
[Annotator "TA"]
[PlyCount "82"]
[EventDate "2023.01.17"]
[EventType "swiss"]
[EventCountry "TUR"]
[SourceTitle "playchess.com"]
[Source "ChessBase"]
[SourceQuality "1"]
[TimeControl "5400+30"]

{[%evp 9,82,-18,31,0,20,-2,0,0,0,-9,-31,-23,-22,-23,-9,0,0,-39,-39,-37,-8,-8,40,-7,52,33,87,77,127,26,65,13,37,50,78,77,89,56,175,0,27,0,0,-30,0,-29,-32,-58,-53,-30,0,-59,-57,-173,-164,-254,-247,-227,-229,-278,-295,-267,-284,-313,-317,-311,-295,-321,-313,-320,-309,-316,-307,-383,-382]} 1. d4 d5 2. Nf3 Nf6 {[%cal Bg8f6,Bf6d7,Bd7c5][%mdl 32]} 3. e3 c5 4. Bd3 Nc6 5. O-O g6 (5... Bg4 $11) 6. c3 {D04: Colle System.} Bg7 {[#]} 7. b3 $146 ({Predecessor:} 7. dxc5 Nd7 8. e4 Nxc5 9. exd5 Qxd5 10. Bb5 Qxd1 11. Rxd1 Bg4 12. Be3 Bxf3 13. gxf3 {0-1 Riyan,A (1455)-Daaevik,W (1780) IND-ch U15 47th 2022 (2)}) 7... Nd7 8. Re1 {The position is equal.} O-O 9. e4 dxe4 10. Bxe4 cxd4 11. cxd4 Nc5 {[%cal Rc6d4]} 12. Bxc6 bxc6 13. Ba3 Ne6 {[%cal Re6d4]} 14. Nbd2 Re8 15. Rc1 (15. Ne4 {looks sharper.} Nxd4 16. Nxd4 Bxd4 17. Nd6) 15... Bb7 (15... Nxd4 $11 {deserves consideration.} 16. Nxd4 Qxd4) 16. Qc2 (16. Rxe6 $14 fxe6 17. Bc5) 16... Qa5 (16... Nxd4 $11 17. Nxd4 Bxd4) 17. Bc5 (17. Rxe6 $5 fxe6 18. Bc5 $11) 17... Rad8 (17... Nxc5 $14 18. Qxc5 Qxc5 19. Rxc5 e6) 18. Nc4 $16 Qa6 (18... Qc7 $142) 19. Nce5 {A dynamic duo of knights.} (19. Rxe6 $1 $16 fxe6 20. Nfe5) 19... Rd5 20. Qe4 (20. Nd3 $14) 20... Nxc5 (20... Qxa2 21. Nxf7 Nxc5 22. Rxc5 $16) (20... Bc8 {with more complications.} 21. h4 Bf6 22. h5 Nxc5 23. Rxc5 Qxa2 24. hxg6 hxg6 25. Rxc6 Qxb3 26. Nxg6 Bf5) 21. Rxc5 {[%emt 1:30:17]} Rxc5 {[%emt 1:40:32]} 22. dxc5 {[%emt 0:00:30][%cal Oe5f7] Hoping for Nxf7!} Bf6 {[%emt 0:00:30]} 23. g4 {[%emt 0:00:30] g5 is the strong threat.} Qxa2 {[%emt 0:00:30] [#]} ({Better is} 23... Bc8 $14) 24. Re3 $2 {[%emt 0:00:30]} (24. Qc4 $1 $18 {[%cal Rc4f7]} Rf8 25. Nd7) 24... Qa5 {[%emt 0:00:30]} 25. g5 {[%emt 0:00:30] Nc4 would be deadly.} (25. Qc4 $5 {[%cal Rc4f7]} Bxe5 26. Nxe5 $14) 25... Bxe5 {[%emt 0:00:30]} 26. Qxe5 {[%emt 0:00:30]} (26. b4 $5 {[%cal Rb4a5]} Qa1+ 27. Re1 $11) 26... Qd8 {[%emt 0:00:30]} 27. Nd4 {[%emt 0:00:30]} Qd7 {[%emt 0:00:30]} 28. Re4 {[%emt 0:00:30] Inhibits Qg4+.} a5 {[%emt 0:00:30]} 29. h4 {[%emt 0:00:30][%cal Oh4h5]} Ba6 {[%emt 0:00:30][%cal Bb7a6,Ba6d3,Bd3e4,Be4d5][%mdl 32]} 30. Kg2 {[%emt 0:00:30]} (30. h5 $11 Qh3 31. h6 Qf1+ {[%mdl 64] Deflection} 32. Kh2 Qxf2+ 33. Kh1) 30... Bd3 $15 {[%emt 0:00:30]} 31. Re3 {[%emt 0:02:10]} (31. Rf4 $15) 31... Qg4+ $19 {[%emt 0:00:22]} 32. Rg3 {[%emt 0:02:08] [#]} (32. Qg3 {was necessary.} Qxd4 33. Rxd3 Qxc5 34. Qf4) 32... Qe4+ $1 {[%emt 0:00:15]} ({Resist} 32... Qxh4 33. Rxd3 Qg4+ 34. Kf1 $18) 33. Qxe4 {[%emt 0:00:19]} Bxe4+ {[%emt 0:00:02][%mdl 4096] Endgame KRB-KRN} 34. Kf1 {[%emt 0:00:37]} Rd8 {[%emt 0:00:38]} 35. Nf3 {[%emt 0:00:40]} Rd5 {[%emt 0:00:35]} 36. Ne1 {[%emt 0:00:41]} Rxc5 {[%emt 0:00:48]} 37. Re3 {[%emt 0:00:05]} Bd5 {[%emt 0:00:28]} 38. Rxe7 {[%emt 0:00:09]} Bxb3 {[%emt 0:00:09]} 39. Nf3 {[%emt 0:00:27]} Kf8 {[%emt 0:00:50]} 40. Ra7 {[%emt 0:00:20]} a4 {[%emt 0:00:58]} 41. Nd4 {[%emt 0:00:30]} Rc4 {[%emt 0:00:00] Weighted Error Value: White=0.40/Black=0.19 (very precise)} 0-1